fUSD/lending_fUSD_20251017
["ID","MTS","AMOUNT","RATE_DAILY","PERIOD"]
[391678974,1760725859743,-500.0,0.00041096,30]
[391678976,1760725859752,-500.0,0.00041096,30]
[391678978,1760725859762,-500.0,0.00041096,30]
[391678980,1760725859771,-500.0,0.00041096,30]
[391678981,1760725859781,-500.0,0.00041096,30]
[391678984,1760725859790,-500.0,0.00041096,30]
[391678986,1760725859800,-500.0,0.00041096,30]
[391678988,1760725859809,-500.0,0.00041096,30]
[391678990,1760725859819,-500.0,0.00041096,30]
[391678992,1760725859828,-500.0,0.00041096,30]
[391678994,1760725859837,-500.0,0.00041096,30]
[391678996,1760725859847,-500.0,0.00041096,30]
[391678998,1760725859857,-500.0,0.00041096,30]
[391679000,1760725859866,-500.0,0.00041096,30]
[391679002,1760725859876,-500.0,0.00041096,30]
[391679004,1760725859886,-500.0,0.00041096,30]
[391679006,1760725859896,-500.0,0.00041096,30]
[391679008,1760725859906,-500.0,0.00041096,30]
[391679010,1760725859915,-500.0,0.00041096,30]
[391679012,1760725859925,-500.0,0.00041096,30]
[391679014,1760725859935,-500.0,0.00041096,30]
[391679016,1760725859945,-500.0,0.00041096,30]
[391679018,1760725859955,-500.0,0.00041096,30]
[391679020,1760725859966,-500.0,0.00041096,30]
[391679022,1760725859976,-484.0,0.00041096,30]
[391679024,1760725859985,-500.0,0.00041096,30]
[391679026,1760725859994,-500.0,0.00041096,30]
[391679028,1760725860003,-500.0,0.00041096,30]
[391679030,1760725860013,-500.0,0.00041096,30]
[391679032,1760725860022,-500.0,0.00041096,30]
[391679034,1760725860032,-500.0,0.00041096,30]
[391679036,1760725860042,-500.0,0.00041096,30]
[391679038,1760725860053,-500.0,0.00041096,30]
[391679040,1760725860063,-500.0,0.00041096,30]
[391679042,1760725860074,-500.0,0.00041096,30]
[391679045,1760725860084,-500.0,0.00041096,30]
[391679047,1760725860096,-500.0,0.00041096,30]
[391679048,1760725860106,-500.0,0.00041096,30]
[391679051,1760725860116,-500.0,0.00041096,30]
[391679052,1760725860126,-500.0,0.00041096,30]
[391679054,1760725860136,-500.0,0.00041096,30]
[391679056,1760725860146,-500.0,0.00041096,30]
[391679059,1760725860156,-500.0,0.00041096,30]
[391679061,1760725860166,-500.0,0.00041096,30]
[391679063,1760725860176,-500.0,0.00041096,30]
[391679065,1760725860186,-500.0,0.00041096,30]
[391679067,1760725860196,-500.0,0.00041096,30]
[391679069,1760725860206,-500.0,0.00041096,30]
[391679071,1760725860216,-500.0,0.00041096,30]
[391679073,1760725860226,-500.0,0.00041096,30]
[391679075,1760725860239,-500.0,0.00041096,30]
[391679077,1760725860251,-500.0,0.00041096,30]
[391679079,1760725860261,-500.0,0.00041096,30]
[391679081,1760725860275,-500.0,0.00041096,30]
[391679082,1760725860286,-500.0,0.00041096,30]
[391679085,1760725860296,-500.0,0.00041096,30]
[391679087,1760725860306,-489.0,0.00041096,2]
[391679089,1760725860317,-500.0,0.000411,2]
[391679091,1760725860327,-1200.0,0.000411,2]
[391679093,1760725860337,-489.0,0.00041151,2]
[391679095,1760725860347,-500.0,0.00041195,17]
[391679097,1760725860357,-500.0,0.00041195,17]
[391679099,1760725860366,-500.0,0.00041195,17]
[391679101,1760725860377,-500.0,0.00041195,17]
[391679103,1760725860387,-500.0,0.00041195,17]
[391679105,1760725860397,-500.0,0.00041195,17]
[391679107,1760725860407,-500.0,0.00041195,17]
[391679109,1760725860419,-500.0,0.00041195,17]
[391679111,1760725860431,-500.0,0.00041195,17]
[391679114,1760725860443,-300.0,0.00041195,2]
[391679116,1760725860456,-500.0,0.00041195,17]
[391679117,1760725860466,-500.0,0.00041195,17]
[391679118,1760725860476,-500.0,0.00041195,16]
[391679119,1760725860486,-500.0,0.00041195,2]
[391679120,1760725860497,-500.0,0.00041195,17]
[391679121,1760725860507,-500.0,0.00041195,17]
[391679122,1760725860517,-500.0,0.00041195,6]
[391679123,1760725860527,-273.51,0.00041195,17]
[391679124,1760725860537,-500.0,0.00041195,17]
[391679125,1760725860547,-500.0,0.00041195,17]
[391679127,1760725860558,-500.0,0.00041195,17]
[391679129,1760725860568,-489.0,0.00041206,2]
[391679131,1760725860578,-489.0,0.0004126,2]
[391679133,1760725860588,-181.0,0.000413,120]
[391679135,1760725860597,-489.0,0.00041315,2]
[391679137,1760725860607,-489.0,0.0004137,2]
[391679139,1760725860617,-5568.41,0.000414,14]
[391679141,1760725860627,-489.0,0.00041425,2]
[391679143,1760725860637,-216388.9372,0.00041444,7]
[391679145,1760725860646,-598.23,0.00041469,17]
[391679147,1760725860656,-500.0,0.00041469,17]
[391679149,1760725860666,-500.0,0.00041469,17]
[391679151,1760725860676,-500.0,0.00041469,17]
[391679153,1760725860686,-500.0,0.00041469,17]
[391679155,1760725860696,-500.0,0.00041469,17]
[391679157,1760725860706,-500.0,0.00041469,17]
[391679159,1760725860716,-500.0,0.00041469,17]
[391679161,1760725860726,-300.0,0.00041469,2]
[391679163,1760725860736,-475.46,0.00041469,17]
[391679165,1760725860745,-500.0,0.00041469,17]
[391679167,1760725860756,-500.0,0.00041469,2]
[391679169,1760725860765,-500.0,0.00041469,17]
[391679171,1760725860775,-500.0,0.00041469,6]
[391679173,1760725860786,-500.0,0.00041469,17]
[391679175,1760725860796,-500.0,0.00041469,17]
[391679177,1760725860806,-1183.0,0.00041474,2]
[391679179,1760725860816,-2546.0,0.00041474,2]
[391679182,1760725860826,-749.0,0.00041474,2]
[391679184,1760725860836,-3356.0,0.00041474,2]
[391679186,1760725860846,-3408.0,0.00041474,2]
[391679188,1760725860855,-489.0,0.0004148,2]
[391679190,1760725860864,-489.0,0.00041534,2]
[391679192,1760725860874,-489.0,0.00041589,2]
[391679194,1760725860883,-299.14,0.00041644,120]
[391679196,1760725860892,-489.0,0.00041644,2]
[391679198,1760725860902,-489.0,0.00041699,2]
[391679200,1760725860911,-619.66353557,0.00041704,2]
[391679202,1760725860920,-361.95,0.00041743,17]
[391679204,1760725860929,-500.0,0.00041743,17]
[391679206,1760725860938,-180.65,0.00041743,17]
[391679208,1760725860947,-500.0,0.00041743,17]
[391679210,1760725860957,-500.0,0.00041743,17]
[391679212,1760725860966,-500.0,0.00041743,17]
[391679214,1760725860975,-500.0,0.00041743,17]
[391679216,1760725860984,-500.0,0.00041743,17]
[391679218,1760725860993,-500.0,0.00041743,2]
[391679220,1760725861003,-500.0,0.00041743,17]
[391679222,1760725861012,-500.0,0.00041743,6]
[391679224,1760725861021,-631.32,0.00041743,17]
[391679226,1760725861031,-500.0,0.00041743,17]
[391679228,1760725861041,-489.0,0.00041754,2]
[391679230,1760725861051,-489.0,0.00041808,2]
[391679232,1760725861060,-489.0,0.00041863,2]
[391679234,1760725861070,-489.0,0.00041918,2]
[391679236,1760725861079,-489.0,0.00041973,2]
[391679238,1760725861089,-151.0,0.00041997,14]
[391679240,1760725861099,-218.89,0.00042,30]
[391679242,1760725861109,-150.0,0.00042,53]
[391679244,1760725861120,-2025.45311436,0.00042,120]
[391679246,1760725861130,-121392.52712399,0.00042,30]
[391679248,1760725861139,-181.0,0.00042,120]
[391679250,1760725861149,-112900.55547941,0.00042,30]
[391679252,1760725861158,-154719.22045142,0.00042,30]
[391679284,1760725861466,-500.0,0.00024657,2]
[391679287,1760725861477,-500.0,0.00024657,2]
[391679289,1760725861487,-500.0,0.00024657,2]
[391679291,1760725861497,-500.0,0.00024657,2]
[391679293,1760725861507,-500.0,0.00024657,2]
[391679310,1760725861664,-500.0,0.00024931,2]
[391679312,1760725861677,-545.75039791,0.00024931,2]
[391679314,1760725861687,-500.0,0.00024931,2]
[391679316,1760725861697,-67.91272292,0.00025205,2]
[391679319,1760725861709,-432.08727708,0.00025205,2]
[391679321,1760725861719,-155.34,0.00025205,2]
[391679323,1760725861728,-227.7752613,0.00025479,2]
[391679327,1760725861762,-272.2247387,0.00025479,2]
[391679329,1760725861771,-227.7752613,0.00025753,2]
[391679331,1760725861782,-272.2247387,0.00025753,2]
[391679334,1760725861792,-300.0,0.00035348,47]
[391679336,1760725861802,-300.0,0.00035403,47]
[391679338,1760725861811,-300.0,0.00035458,47]
[391679340,1760725861820,-300.0,0.00035512,47]
[391679342,1760725861829,-351.4963499,0.00035567,47]
[391679344,1760725861838,-500.0,0.0003623,17]
[391679346,1760725861847,-500.0,0.00040099,17]
[391679348,1760725861856,-500.0,0.00040099,17]
[391679350,1760725861866,-500.0,0.00040373,17]
[391679352,1760725861875,-84081.48299513,0.00042,30]
[391679354,1760725861885,-514.27585391,0.00042,120]
[391679356,1760725861894,-1610.9440478,0.00042,120]
[391679358,1760725861903,-658.0770571,0.00042,120]
[391679360,1760725861915,-153.0,0.00042,120]
[391679362,1760725861924,-1348.79936525,0.0004201,2]
[391679364,1760725861933,-500.0,0.00042017,17]
[391679366,1760725861942,-500.0,0.00042017,17]
[391679368,1760725861952,-500.0,0.00042017,17]
[391679370,1760725861962,-500.0,0.00042017,17]
[391679372,1760725861971,-500.0,0.00042017,17]
[391679374,1760725861980,-500.0,0.00042017,17]
[391679376,1760725861990,-500.0,0.00042017,2]
[391679378,1760725862000,-500.0,0.00042017,17]
[391679380,1760725862010,-500.0,0.00042017,6]
[391679382,1760725862018,-500.0,0.00042017,17]
[391679384,1760725862028,-489.0,0.00042028,2]
[391679386,1760725862038,-489.0,0.00042082,2]
[391679388,1760725862048,-709.91,0.00042091,80]
[391679390,1760725862057,-582.0,0.000421,3]
[391679392,1760725862067,-489.0,0.00042137,2]
[391679394,1760725862077,-5675.61729623,0.00042147,15]
[391679396,1760725862087,-489.0,0.00042192,2]
[391679398,1760725862097,-922.52,0.000422,30]
[391679400,1760725862107,-10662.02,0.000422,30]
[391679402,1760725862119,-5578.70524621,0.000422,2]
[391679404,1760725862129,-6330.05158057,0.0004221,120]
[391679406,1760725862138,-489.0,0.00042247,2]
[391679408,1760725862148,-500.0,0.00042291,17]
[391679410,1760725862158,-500.0,0.00042291,17]
[391679412,1760725862167,-500.0,0.00042291,17]
[391679414,1760725862177,-500.0,0.00042291,17]
[391679416,1760725862186,-500.0,0.00042291,17]
[391679419,1760725862198,-500.0,0.00042291,17]
[391679421,1760725862209,-500.0,0.00042291,2]
[391679422,1760725862219,-500.0,0.00042291,17]
[391679424,1760725862228,-500.0,0.00042291,6]
[391679426,1760725862238,-515.9231221,0.00042291,17]
[391679428,1760725862250,-966.42,0.000423,90]
[391679430,1760725862260,-489.0,0.00042301,2]
[391679433,1760725862270,-200.0,0.0004232,120]
[391679435,1760725862279,-493.60143546,0.00042356,2]
[391679436,1760725862289,-64882.26998745,0.000424,120]
[391679438,1760725862298,-1091.0,0.00042417,30]
[391679440,1760725862307,-1091.0,0.00042417,30]
[391679441,1760725862318,-1158.82100279,0.00042439,60]
[391679442,1760725862327,-233.96347,0.000425,30]
[391679443,1760725862336,-21426.0024096,0.000425,120]
[391679444,1760725862345,-889.54244406,0.000425,120]
[391679445,1760725862354,-1673.23259525,0.000425,60]
[391679446,1760725862363,-1298.39404637,0.000425,120]
[391679447,1760725862371,-1000.0,0.000425,8]
[391679448,1760725862381,-150.0,0.00042558,120]
[391679449,1760725862390,-594.16,0.00042565,17]
[391679450,1760725862400,-500.0,0.00042565,17]
[391679452,1760725862410,-533.03,0.00042565,17]
[391679454,1760725862419,-500.0,0.00042565,17]
[391679456,1760725862429,-500.0,0.00042565,17]
[391679458,1760725862439,-500.0,0.00042565,17]
[391679460,1760725862448,-500.0,0.00042565,2]
[391679463,1760725862459,-500.0,0.00042565,17]
[391679465,1760725862469,-989.76765351,0.000426,120]
[391679467,1760725862479,-150.0,0.00042658,120]
[391679469,1760725862488,-1045.22489299,0.0004266,120]
[391679471,1760725862497,-1151.93717811,0.000427,120]
[391679473,1760725862507,-233.96347,0.000427,30]
[391679474,1760725862516,-181.0,0.000427,120]
[391679476,1760725862526,-150.0,0.00042737,120]
[391679478,1760725862535,-657.51296457,0.0004274,30]
[391679480,1760725862545,-661.29,0.000428,120]
[391679482,1760725862554,-982.96934227,0.0004282,2]
[391679484,1760725862563,-500.0,0.00042839,17]
[391679486,1760725862572,-500.0,0.00042839,17]
[391679488,1760725862582,-500.0,0.00042839,17]
[391679490,1760725862591,-400.0,0.00042839,17]
[391679492,1760725862601,-500.0,0.00042839,2]
[391679494,1760725862611,-500.0,0.00042839,17]
[391679496,1760725862620,-233.96347,0.000429,30]
[391679498,1760725862631,-1394.03170669,0.000429,120]
[391679500,1760725862640,-311.75081399,0.00042999,120]
[391679502,1760725862650,-2100.0,0.00043,120]
[391679504,1760725862659,-214.0,0.00043,7]
[391679506,1760725862668,-856.61371539,0.00043,120]
[391679508,1760725862678,-5401.49999901,0.00043,120]
[391679510,1760725862687,-155.38631582,0.00043,120]
[391679512,1760725862697,-318.3682381,0.00043,120]
[391679514,1760725862707,-153.0,0.00043,120]
[391679516,1760725862716,-303.04,0.00043003,2]
[391679518,1760725862730,-203.02,0.00043014,120]
[391679520,1760725862740,-468.50978133,0.00043044,10]
[391679522,1760725862749,-150.0,0.00043079,120]
[391679524,1760725862758,-233.96347,0.000431,30]
[391679526,1760725862768,-500.0,0.00043113,17]
[391679528,1760725862777,-500.0,0.00043113,17]
[391679531,1760725862786,-500.0,0.00043113,17]
[391679533,1760725862795,-500.0,0.00043113,2]
[391679535,1760725862806,-364.21,0.00043113,17]
[391679536,1760725862815,-749.4127019,0.0004328,120]
[391679538,1760725862824,-233.96347,0.000433,30]
[391679540,1760725862834,-167.69861685,0.000433,120]
[391679543,1760725862844,-348.85478134,0.00043344,15]
[391679545,1760725862853,-500.0,0.00043387,17]
[391679547,1760725862863,-500.0,0.00043387,17]
[391679549,1760725862872,-500.0,0.00043387,17]
[391679551,1760725862882,-500.0,0.00043387,2]
[391679553,1760725862891,-500.0,0.00043397,120]
[391679555,1760725862901,-500.0,0.00043397,120]
[391679557,1760725862910,-500.0,0.00043397,120]
[391679559,1760725862919,-500.0,0.00043397,120]
[391679561,1760725862928,-500.0,0.00043397,120]
[391679563,1760725862938,-500.0,0.00043397,120]
[391679565,1760725862947,-500.0,0.00043397,120]
[391679567,1760725862958,-500.0,0.00043397,120]
[391679569,1760725862967,-500.0,0.00043397,120]
[391679571,1760725862975,-500.0,0.00043397,120]
[391679572,1760725862984,-500.0,0.00043397,120]
[391679574,1760725862994,-500.0,0.00043397,120]
[391679576,1760725863003,-500.0,0.00043397,120]
[391679578,1760725863013,-500.0,0.00043397,120]
[391679580,1760725863022,-500.0,0.00043397,120]
[391679582,1760725863032,-500.0,0.00043397,120]
[391679584,1760725863042,-500.0,0.00043397,120]
[391679586,1760725863051,-500.0,0.00043397,120]
[391679588,1760725863060,-500.0,0.00043397,120]
[391679590,1760725863069,-500.0,0.00043397,120]
[391679592,1760725863079,-500.0,0.00043397,120]
[391679594,1760725863089,-500.0,0.00043397,120]
[391679596,1760725863099,-500.0,0.00043397,120]
[391679598,1760725863108,-500.0,0.00043397,120]
[391679601,1760725863117,-500.0,0.00043397,120]
[391679602,1760725863127,-500.0,0.00043397,120]
[391679604,1760725863137,-500.0,0.00043397,120]
[391679606,1760725863147,-500.0,0.00043397,120]
[391679608,1760725863156,-500.0,0.00043397,120]
[391679611,1760725863166,-500.0,0.00043397,120]
[391679613,1760725863175,-500.0,0.00043397,120]
[391679615,1760725863185,-500.0,0.00043397,120]
[391679617,1760725863194,-500.0,0.00043397,120]
[391679619,1760725863205,-500.0,0.00043397,120]
[391679621,1760725863215,-500.0,0.00043397,120]
[391679623,1760725863224,-500.0,0.00043397,120]
[391679625,1760725863234,-500.0,0.00043397,120]
[391679627,1760725863247,-500.0,0.00043397,120]
[391679629,1760725863257,-500.0,0.00043397,120]
[391679631,1760725863266,-500.0,0.00043397,120]
[391679633,1760725863276,-511.0,0.00043397,120]
[391679635,1760725863288,-500.0,0.00043397,120]
[391679637,1760725863297,-500.0,0.00043397,120]
[391679639,1760725863307,-500.0,0.00043397,120]
[391679641,1760725863317,-500.0,0.00043397,120]
[391679643,1760725863327,-500.0,0.00043397,120]
[391679645,1760725863337,-500.0,0.00043397,120]
[391679647,1760725863346,-500.0,0.00043397,120]
[391679649,1760725863356,-500.0,0.00043397,120]
[391679651,1760725863365,-500.0,0.00043397,120]
[391679653,1760725863375,-500.0,0.00043397,120]
[391679655,1760725863384,-500.0,0.00043397,120]
[391679657,1760725863393,-500.0,0.00043397,120]
[391679659,1760725863403,-500.0,0.00043397,120]
[391679661,1760725863412,-500.0,0.00043397,120]
[391679663,1760725863422,-500.0,0.00043397,120]
[391679665,1760725863431,-500.0,0.00043397,120]
[391679667,1760725863440,-500.0,0.00043397,120]
[391679669,1760725863449,-500.0,0.00043397,120]
[391679671,1760725863460,-500.0,0.00043397,120]
[391679673,1760725863469,-500.0,0.00043397,120]
[391679675,1760725863479,-500.0,0.00043397,120]
[391679677,1760725863488,-500.0,0.00043397,120]
[391679679,1760725863497,-500.0,0.00043397,120]
[391679681,1760725863507,-500.0,0.00043397,120]
[391679683,1760725863517,-500.0,0.00043397,120]
[391679685,1760725863526,-500.0,0.00043397,120]
[391679687,1760725863536,-500.0,0.00043397,120]
[391679689,1760725863545,-500.0,0.00043397,120]
[391679691,1760725863554,-500.0,0.00043397,120]
[391679693,1760725863564,-500.0,0.00043397,120]
[391679695,1760725863574,-500.0,0.00043397,120]
[391679697,1760725863583,-500.0,0.00043397,120]
[391679700,1760725863593,-500.0,0.00043397,120]
[391679701,1760725863603,-500.0,0.00043397,120]
[391679703,1760725863612,-500.0,0.00043397,120]
[391679706,1760725863623,-500.0,0.00043397,120]
[391679708,1760725863632,-500.0,0.00043397,120]
[391679710,1760725863642,-500.0,0.00043397,120]
[391679712,1760725863652,-500.0,0.00043397,120]
[391679714,1760725863662,-500.0,0.00043397,120]
[391679716,1760725863671,-500.0,0.00043397,120]
[391679718,1760725863684,-500.0,0.00043397,120]
[391679720,1760725863694,-500.0,0.00043397,120]
[391679722,1760725863706,-500.0,0.00043397,120]
[391679724,1760725863715,-500.0,0.00043397,120]
[391679725,1760725863725,-500.0,0.00043397,120]
[391679728,1760725863735,-500.0,0.00043397,120]
[391679729,1760725863746,-500.0,0.00043397,120]
[391679731,1760725863755,-500.0,0.00043397,120]
[391679733,1760725863765,-500.0,0.00043397,120]
[391679735,1760725863775,-500.0,0.00043397,120]
[391679737,1760725863785,-500.0,0.00043397,120]
[391679740,1760725863795,-500.0,0.00043397,120]
[391679742,1760725863805,-500.0,0.00043397,120]
[391679744,1760725863814,-500.0,0.00043397,120]
[391679746,1760725863825,-500.0,0.00043397,120]
[391679748,1760725863834,-500.0,0.00043397,120]
[391679750,1760725863844,-500.0,0.00043397,120]
[391679751,1760725863853,-500.0,0.00043397,120]
[391679752,1760725863862,-500.0,0.00043397,120]
[391679753,1760725863871,-500.0,0.00043397,120]
[391679754,1760725863880,-500.0,0.00043397,120]
[391679755,1760725863891,-500.0,0.00043397,120]
[391679756,1760725863900,-500.0,0.00043397,120]
[391679757,1760725863910,-500.0,0.00043397,120]
[391679758,1760725863919,-500.0,0.00043397,120]
[391679759,1760725863928,-500.0,0.00043397,120]
[391679760,1760725863937,-500.0,0.00043397,120]
[391679761,1760725863946,-500.0,0.00043397,120]
[391679762,1760725863959,-500.0,0.00043397,120]
[391679763,1760725863967,-500.0,0.00043397,120]
[391679764,1760725863977,-500.0,0.00043397,120]
[391679765,1760725863986,-500.0,0.00043397,120]
[391679766,1760725863995,-500.0,0.00043397,120]
[391679767,1760725864004,-500.0,0.00043397,120]
[391679768,1760725864013,-500.0,0.00043397,120]
[391679769,1760725864023,-619.0,0.00043397,120]
[391679770,1760725864033,-500.0,0.00043397,120]
[391679771,1760725864043,-500.0,0.00043397,120]
[391679772,1760725864052,-500.0,0.00043397,120]
[391679773,1760725864061,-500.0,0.00043397,120]
[391679774,1760725864071,-500.0,0.00043397,120]
[391679776,1760725864080,-500.0,0.00043397,120]
[391679777,1760725864090,-500.0,0.00043397,120]
[391679778,1760725864101,-500.0,0.00043397,120]
[391679779,1760725864111,-500.0,0.00043397,120]
[391679780,1760725864121,-500.0,0.00043397,120]
[391679781,1760725864131,-500.0,0.00043397,120]
[391679782,1760725864140,-500.0,0.00043397,120]
[391679783,1760725864149,-500.0,0.00043397,120]
[391679784,1760725864159,-629.0,0.00043397,120]
[391679785,1760725864168,-500.0,0.00043397,120]
[391679786,1760725864177,-500.0,0.00043397,120]
[391679787,1760725864186,-507.0,0.00043397,120]
[391679788,1760725864195,-181.0,0.000434,120]
[391679790,1760725864207,-504907.5203,0.00043444,30]
[391679791,1760725864217,-233.96347,0.000435,30]
[391679792,1760725864227,-220.61816105,0.000435,30]
[391679793,1760725864236,-171.85057353,0.000435,120]
[391679794,1760725864251,-152.0,0.0004356,120]
[391679795,1760725864261,-709.9,0.00043595,100]
[391679796,1760725864271,-500.0,0.00043661,17]
[391679797,1760725864280,-500.0,0.00043661,17]
[391679798,1760725864291,-198.1,0.00043661,17]
[391679799,1760725864300,-500.0,0.00043661,2]
[391679800,1760725864310,-233.96347,0.000437,30]
[391679801,1760725864321,-413.45041953,0.000437,120]
[391679802,1760725864331,-819.79449689,0.000438,120]
[391679803,1760725864340,-494.36842231,0.000438,30]
[391679804,1760725864351,-14236.4075,0.00043835,120]
[391679805,1760725864361,-233.96347,0.000439,30]
[391679806,1760725864370,-55555.0,0.000439,60]
[391679807,1760725864380,-300.0,0.000439,16]
[391679808,1760725864389,-500.0,0.00043935,120]
[391679809,1760725864398,-500.0,0.00043935,120]
[391679810,1760725864408,-500.0,0.00043935,2]
[391679811,1760725864417,-213.94386236,0.00043965,60]
[391679812,1760725864427,-54000.0,0.00044,120]
[391679813,1760725864436,-218.94971634,0.00044,120]
[391679814,1760725864447,-451.21546376,0.00044,30]
[391679815,1760725864458,-181.0,0.00044,120]
[391679816,1760725864469,-378.51143566,0.00044,120]
[391679817,1760725864478,-811.79859076,0.00044,120]
[391679818,1760725864488,-153.0,0.00044,120]
[391679819,1760725864498,-233.96347,0.000441,30]
[391679820,1760725864508,-150.0,0.00044161,120]
[391679821,1760725864517,-500.0,0.00044209,120]
[391679822,1760725864527,-500.0,0.00044209,120]
[391679823,1760725864537,-500.0,0.00044209,2]
[391679824,1760725864547,-233.96347,0.000443,30]
[391679825,1760725864557,-1200.0,0.000444,15]
[391679826,1760725864567,-1006.901,0.00044474,2]
[391679827,1760725864576,-2546.0,0.00044474,2]
[391679829,1760725864587,-749.0,0.00044474,2]
[391679830,1760725864596,-3356.0,0.00044474,2]
[391679831,1760725864606,-3408.0,0.00044474,2]
[391679832,1760725864616,-500.0,0.00044483,120]
[391679833,1760725864626,-595.06,0.00044483,120]
[391679834,1760725864636,-500.0,0.00044483,2]
[391679835,1760725864645,-233.96347,0.000445,30]
[391679836,1760725864654,-379.15391377,0.000445,120]
[391679837,1760725864664,-200.0,0.00044605,120]
[391679838,1760725864673,-1091.0,0.0004465,30]
[391679839,1760725864683,-1091.0,0.0004465,30]
[391679840,1760725864692,-233.96347,0.000447,30]
[391679841,1760725864702,-181.0,0.000447,120]
[391679842,1760725864712,-300.50611911,0.00044712,14]
[391679843,1760725864721,-500.0,0.00044741,120]
[391679844,1760725864731,-500.0,0.00044741,120]
[391679845,1760725864741,-500.0,0.00044741,120]
[391679846,1760725864751,-500.0,0.00044741,120]
[391679847,1760725864760,-1000.0,0.00044741,30]
[391679848,1760725864769,-500.0,0.00044741,120]
[391679849,1760725864779,-533.36,0.00044741,120]
[391679850,1760725864789,-500.0,0.00044741,120]
[391679851,1760725864798,-500.0,0.00044741,120]
[391679852,1760725864807,-500.0,0.00044741,120]
[391679853,1760725864816,-500.0,0.00044741,120]
[391679854,1760725864825,-500.0,0.00044741,120]
[391679855,1760725864835,-500.0,0.00044741,120]
[391679856,1760725864848,-500.0,0.00044741,120]
[391679857,1760725864857,-500.0,0.00044741,120]
[391679858,1760725864867,-304.52182341,0.00044741,120]
[391679859,1760725864876,-500.0,0.00044741,120]
[391679860,1760725864885,-500.0,0.00044741,120]
[391679861,1760725864895,-201.25687564,0.00044741,120]
[391679862,1760725864904,-500.0,0.00044741,120]
[391679863,1760725864913,-500.0,0.00044741,120]
[391679864,1760725864923,-500.0,0.00044741,120]
[391679865,1760725864932,-500.0,0.00044741,120]
[391679866,1760725864941,-500.0,0.00044741,120]
[391679867,1760725864950,-500.0,0.00044741,120]
[391679868,1760725864960,-500.0,0.00044741,120]
[391679869,1760725864969,-500.0,0.00044741,120]
[391679870,1760725864980,-500.0,0.00044741,120]
[391679871,1760725864990,-500.0,0.00044741,120]
[391679872,1760725864999,-500.0,0.00044741,120]
[391679873,1760725865009,-500.0,0.00044741,120]
[391679874,1760725865018,-500.0,0.00044741,120]
[391679875,1760725865027,-500.0,0.00044741,120]
[391679876,1760725865179,-500.0,0.00044741,120]
[391679877,1760725865189,-500.84975821,0.00044741,120]
[391679878,1760725865198,-500.4708005,0.00044741,120]
[391679879,1760725865208,-500.0,0.00044741,120]
[391679880,1760725865217,-449.75438361,0.00044741,120]
[391679881,1760725865226,-500.0,0.00044741,120]
[391679882,1760725865236,-500.0,0.00044741,120]